[Event "European Online Club-ch-A 2021"]
[Site "Online"]
[Date "2021.03.27"]
[Round "1.7"]
[White "Timofeev, Artyom"]
[Black "Pribyl, Viktor"]
[Result "1-0"]
[ECO "D82"]
[WhiteElo "2594"]
[BlackElo "2208"]
[Annotator "ChessBase"]
[PlyCount "45"]
[EventDate "2021.03.27"]
[EventType "team-tourn"]
[EventCountry "NET"]
[SourceTitle "playchess.com"]
[Source "ChessBase"]
[SourceQuality "1"]
[TimeControl "900+5"]

1. d4 {[%emt 0:00:00]} Nf6 {[%emt 0:00:04]} 2. c4 {[%emt 0:00:03]} g6 {[%emt 0:00:06]} 3. Nc3 {[%emt 0:00:09]} d5 {[%emt 0:00:03]} 4. Bf4 {[%emt 0:00:06]} Bg7 {[%emt 0:00:59]} 5. e3 {[%emt 0:00:06]} O-O {[%emt 0:00:06]} 6. Rc1 {[%emt 0:00:05]} dxc4 {[%emt 0:00:32]} 7. Bxc4 {[%emt 0:00:07]} c5 {[%emt 0:00:28]} 8. dxc5 {[%emt 0:00:30]} Qa5 {[%emt 0:02:07]} 9. Nge2 {[%emt 0:00:10]} Qxc5 {[%emt 0:01:05]} 10. Qb3 {[%emt 0:00:05]} Qb6 {[%emt 0:02:28]} 11. Qxb6 {[%emt 0:01:08]} axb6 {[%emt 0:00:03]} 12. O-O {[%emt 0:00:17]} Na6 {[%emt 0:01:40]} 13. Rfd1 {[%emt 0:00:31]} Nh5 {[%emt 0:02:19]} 14. Bg5 {[%emt 0:00:11]} Bf6 {[%emt 0:00:02]} 15. Bh6 {[%emt 0:00:34]} Bg7 {[%emt 0:00:14]} 16. Bxg7 {[%emt 0:00:04]} Nxg7 {[%emt 0:00:02]} 17. Nd5 {[%emt 0:00:03]} e5 {[%emt 0:00:44]} 18. Nxb6 {[%emt 0:00:18]} Rb8 {[%emt 0:00:01]} 19. Nc3 {[%emt 0:00:14]} Nf5 {[%emt 0:01:42]} 20. Nb5 {[%emt 0:00:45]} Kg7 {[%emt 0:00:42]} 21. Na7 {[%emt 0:00:05]} Ne7 {[%emt 0:00:10]} 22. Naxc8 {[%emt 0:00:04]} Nxc8 {[%emt 0:00:05]} 23. Nd7 {[%emt 0:00:02]} 1-0

[Event "European Online Club-ch-A 2021"]
[Site "Online"]
[Date "2021.03.27"]
[Round "1.8"]
[White "Brozka, Karel"]
[Black "Sharafiev, Azat"]
[Result "0-1"]
[ECO "E92"]
[WhiteElo "2080"]
[BlackElo "2432"]
[Annotator "NA"]
[PlyCount "76"]
[EventDate "2021.03.27"]
[EventType "team-tourn"]
[EventCountry "NET"]
[SourceTitle "playchess.com"]
[Source "ChessBase"]
[SourceQuality "1"]
[TimeControl "900+5"]

1. d4 {[%emt 0:00:00]} Nf6 {[%emt 0:00:24]} 2. c4 {[%emt 0:00:15]} g6 {[%emt 0:00:09]} 3. Nc3 {[%emt 0:00:08]} Bg7 {[%emt 0:00:02]} 4. Nf3 {[%emt 0:00:06]} O-O {[%emt 0:00:07]} 5. e4 {[%emt 0:00:04]} d6 {[%emt 0:00:15]} 6. Be2 {[%emt 0:00:15]} e5 {[%emt 0:00:08]} 7. dxe5 {[%emt 0:00:05]} dxe5 {[%emt 0:00:02]} 8. Qxd8 {[%emt 0:00:01]} Rxd8 {[%emt 0:00:04]} 9. Bg5 {[%emt 0:00:15]} c6 {[%emt 0:03:22]} 10. O-O {[%emt 0:03:38]} Bg4 {[%emt 0:01:12]} 11. Rfd1 {[%emt 0:00:53]} Nbd7 {[%emt 0:00:16]} 12. b4 {[%emt 0:00:50]} Nf8 {[%emt 0:01:22]} 13. Be3 {[%emt 0:00:58]} Rxd1+ {[%emt 0:01:29]} 14. Rxd1 {[%emt 0:00:11]} Ne6 {[%emt 0:00:17]} 15. c5 {[%emt 0:01:13]} a5 {[%emt 0:00:24]} 16. b5 {[%emt 0:01:59]} Bxf3 {[%emt 0:01:11]} 17. gxf3 {[%emt 0:00:58]} Nd4 {[%emt 0:02:59]} 18. Bxd4 {[%emt 0:01:15]} exd4 {[%emt 0:00:02]} 19. Rxd4 {[%emt 0:00:59]} Nh5 {[%emt 0:00:54]} 20. Rc4 {[%emt 0:00:18]} Nf4 {[%emt 0:00:02]} 21. Kf1 {[%emt 0:00:12]} Bxc3 {[%emt 0:00:23]} 22. Rxc3 {[%emt 0:00:07]} Nxe2 {[%emt 0:00:02]} 23. Kxe2 {[%emt 0:00:01]} cxb5 {[%emt 0:00:01]} 24. Rb3 {[%emt 0:00:56]} b4 {[%emt 0:00:07]} 25. Kd3 {[%emt 0:00:47]} Rd8+ {[%emt 0:00:03]} 26. Kc4 {[%emt 0:00:04]} Rd2 {[%emt 0:00:02]} 27. Kb5 {[%emt 0:00:02]} Rxa2 {[%emt 0:00:04]} 28. Kb6 {[%emt 0:00:02]} Rc2 {[%emt 0:01:14]} 29. Kb5 {[%emt 0:00:38]} Kg7 {[%emt 0:00:26]} 30. f4 {[%emt 0:00:04]} Kf6 {[%emt 0:00:02]} 31. Kb6 {[%emt 0:00:04]} Rc3 {[%emt 0:00:14]} 32. Rb1 {[%emt 0:00:04]} b3 {[%emt 0:00:02]} 33. Kxb7 {[%emt 0:00:06]} a4 {[%emt 0:00:06]} 34. c6 {[%emt 0:00:09]} a3 {[%emt 0:00:01]} 35. e5+ {[%emt 0:00:11]} Kg7 {[%emt 0:00:02]} 36. c7 {[%emt 0:00:04]} a2 {[%emt 0:00:05]} 37. Ra1 {[%emt 0:00:06]} b2 {[%emt 0:00:03]} 38. Rxa2 {[%emt 0:00:04]} b1=Q+ {[%emt 0:00:02]} 0-1

[Event "European Online Club-ch-A 2021"]
[Site "Online"]
[Date "2021.03.27"]
[Round "1.9"]
[White "Deac, Bogdan-Daniel"]
[Black "Celik, Hasan Huseyin"]
[Result "1-0"]
[ECO "D45"]
[WhiteElo "2625"]
[BlackElo "2173"]
[Annotator "ChessBase"]
[PlyCount "129"]
[EventDate "2021.03.27"]
[EventType "team-tourn"]
[EventCountry "NET"]
[SourceTitle "playchess.com"]
[Source "ChessBase"]
[SourceQuality "1"]
[TimeControl "900+5"]

1. Nf3 {[%emt 0:00:00]} d5 {[%emt 0:00:03]} 2. e3 {[%emt 0:00:05]} Nf6 {[%emt 0:00:08]} 3. c4 {[%emt 0:00:03]} c6 {[%emt 0:00:18]} 4. Nc3 {[%emt 0:00:03]} e6 {[%emt 0:00:09]} 5. b3 {[%emt 0:00:05]} Bd6 {[%emt 0:00:03]} 6. Bb2 {[%emt 0:00:02]} O-O {[%emt 0:00:11]} 7. d4 {[%emt 0:00:03]} Nbd7 {[%emt 0:00:09]} 8. Be2 {[%emt 0:00:13]} Qe7 {[%emt 0:01:08]} 9. O-O {[%emt 0:00:10]} b6 {[%emt 0:00:14]} 10. Qc2 {[%emt 0:00:17]} Bb7 {[%emt 0:00:05]} 11. Rad1 {[%emt 0:00:03]} Rac8 {[%emt 0:00:05]} 12. Rfe1 {[%emt 0:03:47]} e5 {[%emt 0:00:35]} 13. dxe5 {[%emt 0:04:54]} Nxe5 {[%emt 0:00:04]} 14. Nd4 {[%emt 0:00:01]} Bb8 {[%emt 0:00:59]} 15. Nf5 {[%emt 0:01:27]} Qe6 {[%emt 0:00:32]} 16. f4 {[%emt 0:00:03]} Ng6 {[%emt 0:01:08]} 17. Bf3 {[%emt 0:00:08]} Rfe8 {[%emt 0:00:07]} 18. Qd3 {[%emt 0:00:50]} dxc4 {[%emt 0:00:56]} 19. bxc4 {[%emt 0:00:04]} Ba6 {[%emt 0:00:02]} 20. Nxg7 {[%emt 0:00:15]} Kxg7 {[%emt 0:01:28]} 21. Ne4 {[%emt 0:00:03]} Ne5 {[%emt 0:00:48]} 22. fxe5 {[%emt 0:00:25]} Bxe5 {[%emt 0:00:02]} 23. Bxe5 {[%emt 0:00:24]} Qxe5 {[%emt 0:00:03]} 24. Nd6 {[%emt 0:00:01]} Red8 {[%emt 0:00:37]} 25. Qa3 {[%emt 0:00:14]} Rb8 {[%emt 0:00:53]} 26. Rd2 {[%emt 0:02:21]} Qe6 {[%emt 0:05:09]} 27. Red1 {[%emt 0:00:17]} Bxc4 {[%emt 0:00:02]} 28. Nxc4 {[%emt 0:00:02]} Rxd2 {[%emt 0:00:10]} 29. Nxd2 {[%emt 0:00:02]} Rd8 {[%emt 0:00:01]} 30. Nf1 {[%emt 0:00:14]} Rxd1 {[%emt 0:00:06]} 31. Bxd1 {[%emt 0:00:01]} a5 {[%emt 0:00:03]} 32. Qc3 {[%emt 0:00:15]} Kg8 {[%emt 0:00:06]} 33. Bb3 {[%emt 0:00:06]} Qd6 {[%emt 0:00:04]} 34. Qd4 {[%emt 0:00:09]} Qxd4 {[%emt 0:00:31]} 35. exd4 {[%emt 0:00:02]} b5 {[%emt 0:00:03]} 36. Ne3 {[%emt 0:00:14]} Ne4 {[%emt 0:00:02]} 37. Nd1 {[%emt 0:00:24]} Kf8 {[%emt 0:00:24]} 38. Kf1 {[%emt 0:00:05]} Ke7 {[%emt 0:00:05]} 39. Ke2 {[%emt 0:00:05]} h6 {[%emt 0:00:08]} 40. Ke3 {[%emt 0:00:03]} Nd6 {[%emt 0:00:06]} 41. Nc3 {[%emt 0:00:04]} f5 {[%emt 0:00:04]} 42. Bc2 {[%emt 0:00:06]} Kf6 {[%emt 0:00:01]} 43. Bd3 {[%emt 0:00:02]} a4 {[%emt 0:00:05]} 44. Ne2 {[%emt 0:00:07]} b4 {[%emt 0:00:04]} 45. Bc2 {[%emt 0:00:09]} Nc4+ {[%emt 0:00:13]} 46. Kd3 {[%emt 0:00:03]} Nb2+ {[%emt 0:00:01]} 47. Kd2 {[%emt 0:00:02]} Kg5 {[%emt 0:00:03]} 48. Kc1 {[%emt 0:00:10]} a3 {[%emt 0:00:03]} 49. Ng3 {[%emt 0:00:03]} f4 {[%emt 0:00:20]} 50. Ne4+ {[%emt 0:00:02]} Kg4 {[%emt 0:00:03]} 51. Nc5 {[%emt 0:00:11]} Nc4 {[%emt 0:00:06]} 52. Bd1+ {[%emt 0:00:04]} Kf5 {[%emt 0:00:03]} 53. Bf3 {[%emt 0:00:04]} Na5 {[%emt 0:00:07]} 54. Kc2 {[%emt 0:00:04]} Kf6 {[%emt 0:00:05]} 55. Nd3 {[%emt 0:00:11]} b3+ {[%emt 0:00:01]} 56. axb3 {[%emt 0:00:03]} a2 {[%emt 0:00:01]} 57. Kb2 {[%emt 0:00:01]} Nxb3 {[%emt 0:00:01]} 58. Kxa2 {[%emt 0:00:01]} Nxd4 {[%emt 0:00:01]} 59. Nxf4 {[%emt 0:00:02]} Kf5 {[%emt 0:00:05]} 60. Ne2 {[%emt 0:00:02]} Nxe2 {[%emt 0:00:09]} 61. Bxe2 {[%emt 0:00:02]} Kf4 {[%emt 0:00:01]} 62. Kb3 {[%emt 0:00:04]} Ke3 {[%emt 0:00:01]} 63. Bf3 {[%emt 0:00:02]} Kf2 {[%emt 0:00:05]} 64. Bxc6 {[%emt 0:00:03]} h5 {[%emt 0:00:03]} 65. h3 {[%emt 0:00:02]} 1-0

[Event "European Online Club-ch-A 2021"]
[Site "Online"]
[Date "2021.03.27"]
[Round "1.10"]
[White "Durak, Can"]
[Black "Istratescu, Andrei"]
[Result "1/2-1/2"]
[ECO "E21"]
[WhiteElo "2187"]
[BlackElo "2553"]
[Annotator "ChessBase"]
[PlyCount "115"]
[EventDate "2021.03.27"]
[EventType "team-tourn"]
[EventCountry "NET"]
[SourceTitle "playchess.com"]
[Source "ChessBase"]
[SourceQuality "1"]
[TimeControl "900+5"]

1. d4 {[%emt 0:00:00]} Nf6 {[%emt 0:00:08]} 2. c4 {[%emt 0:00:06]} e6 {[%emt 0:00:05]} 3. Nc3 {[%emt 0:00:07]} Bb4 {[%emt 0:00:03]} 4. e3 {[%emt 0:00:04]} b6 {[%emt 0:00:06]} 5. Bd2 {[%emt 0:00:06]} Bb7 {[%emt 0:00:09]} 6. Nf3 {[%emt 0:00:05]} O-O {[%emt 0:00:04]} 7. Be2 {[%emt 0:00:07]} d6 {[%emt 0:00:14]} 8. O-O {[%emt 0:00:08]} Nbd7 {[%emt 0:00:03]} 9. Rc1 {[%emt 0:00:03]} Bxc3 {[%emt 0:00:06]} 10. Bxc3 {[%emt 0:00:17]} Ne4 {[%emt 0:00:02]} 11. Be1 {[%emt 0:00:02]} f5 {[%emt 0:00:07]} 12. Nd2 {[%emt 0:00:12]} Nxd2 {[%emt 0:00:22]} 13. Bxd2 {[%emt 0:00:37]} a5 {[%emt 0:00:14]} 14. Bf3 {[%emt 0:01:58]} Bxf3 {[%emt 0:00:06]} 15. Qxf3 {[%emt 0:00:02]} Nf6 {[%emt 0:00:03]} 16. Qe2 {[%emt 0:00:07]} Qe7 {[%emt 0:00:24]} 17. Rfd1 {[%emt 0:02:10]} e5 {[%emt 0:00:25]} 18. dxe5 {[%emt 0:00:32]} Qxe5 {[%emt 0:00:04]} 19. Bc3 {[%emt 0:00:02]} Qe6 {[%emt 0:00:05]} 20. Bxf6 {[%emt 0:00:16]} Rxf6 {[%emt 0:00:03]} 21. Rd4 {[%emt 0:00:03]} Re8 {[%emt 0:00:16]} 22. Qf3 {[%emt 0:00:05]} Rf7 {[%emt 0:00:12]} 23. h3 {[%emt 0:00:06]} h6 {[%emt 0:00:27]} 24. Qc6 {[%emt 0:01:11]} Ree7 {[%emt 0:00:19]} 25. Rcd1 {[%emt 0:00:23]} Qd7 {[%emt 0:00:34]} 26. Qxd7 {[%emt 0:02:27]} Rxd7 {[%emt 0:00:03]} 27. g3 {[%emt 0:00:02]} Rde7 {[%emt 0:00:13]} 28. Kg2 {[%emt 0:00:03]} g6 {[%emt 0:00:07]} 29. Kf3 {[%emt 0:00:04]} Kg7 {[%emt 0:00:02]} 30. b3 {[%emt 0:01:59]} Re5 {[%emt 0:00:10]} 31. Rd5 {[%emt 0:00:34]} Kf6 {[%emt 0:00:09]} 32. Rxe5 {[%emt 0:00:06]} Kxe5 {[%emt 0:00:04]} 33. Rd5+ {[%emt 0:00:02]} Ke6 {[%emt 0:00:01]} 34. h4 {[%emt 0:00:16]} Rf8 {[%emt 0:00:23]} 35. Kf4 {[%emt 0:00:13]} Rg8 {[%emt 0:00:10]} 36. e4 {[%emt 0:01:22]} fxe4 {[%emt 0:00:07]} 37. Kxe4 {[%emt 0:00:02]} Rf8 {[%emt 0:00:43]} 38. f4 {[%emt 0:00:05]} c6 {[%emt 0:00:05]} 39. Rd1 {[%emt 0:00:03]} h5 {[%emt 0:00:07]} 40. Kf3 {[%emt 0:00:47]} Rd8 {[%emt 0:00:07]} 41. g4 {[%emt 0:00:13]} hxg4+ {[%emt 0:00:04]} 42. Kxg4 {[%emt 0:00:02]} Kf6 {[%emt 0:00:02]} 43. Rf1 {[%emt 0:00:53]} d5 {[%emt 0:00:04]} 44. f5 {[%emt 0:00:03]} dxc4 {[%emt 0:00:12]} 45. fxg6+ {[%emt 0:00:03]} Kxg6 {[%emt 0:00:02]} 46. bxc4 {[%emt 0:00:04]} Rd2 {[%emt 0:00:17]} 47. h5+ {[%emt 0:00:12]} Kg7 {[%emt 0:00:04]} 48. h6+ {[%emt 0:00:24]} Kg6 {[%emt 0:00:23]} 49. h7 {[%emt 0:00:02]} Kxh7 {[%emt 0:00:02]} 50. Rf6 {[%emt 0:00:02]} Rxa2 {[%emt 0:00:08]} 51. Rxc6 {[%emt 0:00:02]} Rb2 {[%emt 0:00:02]} 52. c5 {[%emt 0:00:12]} bxc5 {[%emt 0:00:03]} 53. Rxc5 {[%emt 0:00:02]} a4 {[%emt 0:00:17]} 54. Ra5 {[%emt 0:00:02]} Kg6 {[%emt 0:00:05]} 55. Ra6+ {[%emt 0:00:03]} Kf7 {[%emt 0:00:03]} 56. Rxa4 {[%emt 0:00:02]} Ke6 {[%emt 0:00:02]} 57. Re4+ {[%emt 0:00:03]} Kd5 {[%emt 0:00:02]} 58. Re8 {[%emt 0:00:03]} 1/2-1/2

[Event "European Online Club-ch-A 2021"]
[Site "Online"]
[Date "2021.03.27"]
[Round "1.11"]
[White "Marin, Mihail"]
[Black "Gurel, Ediz"]
[Result "1/2-1/2"]
[ECO "D05"]
[WhiteElo "2502"]
[BlackElo "2168"]
[Annotator "ChessBase"]
[PlyCount "94"]
[EventDate "2021.03.27"]
[EventType "team-tourn"]
[EventCountry "NET"]
[SourceTitle "playchess.com"]
[Source "ChessBase"]
[SourceQuality "1"]
[TimeControl "900+5"]

1. d4 {[%emt 0:00:00]} Nf6 {[%emt 0:00:06]} 2. Nf3 {[%emt 0:00:03]} e6 {[%emt 0:00:08]} 3. e3 {[%emt 0:00:03]} b6 {[%emt 0:00:07]} 4. Bd3 {[%emt 0:00:03]} Bb7 {[%emt 0:00:01]} 5. O-O {[%emt 0:00:02]} Be7 {[%emt 0:00:05]} 6. b3 {[%emt 0:00:08]} O-O {[%emt 0:00:02]} 7. Bb2 {[%emt 0:00:02]} d5 {[%emt 0:00:12]} 8. Nbd2 {[%emt 0:00:09]} c5 {[%emt 0:00:14]} 9. Ne5 {[%emt 0:00:08]} Nbd7 {[%emt 0:00:58]} 10. f4 {[%emt 0:00:05]} Ne4 {[%emt 0:01:15]} 11. Nxe4 {[%emt 0:00:36]} dxe4 {[%emt 0:00:05]} 12. Bc4 {[%emt 0:00:03]} cxd4 {[%emt 0:02:33]} 13. exd4 {[%emt 0:02:05]} Nxe5 {[%emt 0:00:51]} 14. fxe5 {[%emt 0:00:16]} Rc8 {[%emt 0:01:06]} 15. Be2 {[%emt 0:03:54]} Rc7 {[%emt 0:01:30]} 16. c4 {[%emt 0:00:29]} Rd7 {[%emt 0:00:47]} 17. Kh1 {[%emt 0:02:11]} Bc5 {[%emt 0:00:39]} 18. d5 {[%emt 0:02:21]} exd5 {[%emt 0:00:05]} 19. Bg4 {[%emt 0:00:04]} Re7 {[%emt 0:00:24]} 20. Qe1 {[%emt 0:00:21]} dxc4 {[%emt 0:01:57]} 21. Rd1 {[%emt 0:00:42]} Qa8 {[%emt 0:00:33]} 22. b4 {[%emt 0:00:07]} e3 {[%emt 0:00:02]} 23. bxc5 {[%emt 0:00:29]} Bxg2+ {[%emt 0:00:05]} 24. Kg1 {[%emt 0:00:03]} Bxf1 {[%emt 0:00:01]} 25. Qxf1 {[%emt 0:00:02]} bxc5 {[%emt 0:01:12]} 26. Qf4 {[%emt 0:00:25]} Rd8 {[%emt 0:00:29]} 27. Qxe3 {[%emt 0:00:31]} Rxd1+ {[%emt 0:00:03]} 28. Bxd1 {[%emt 0:00:02]} Qb8 {[%emt 0:00:29]} 29. Bc3 {[%emt 0:00:18]} Qb1 {[%emt 0:00:28]} 30. Qd2 {[%emt 0:00:08]} h6 {[%emt 0:00:21]} 31. Kf2 {[%emt 0:00:19]} Qf5+ {[%emt 0:00:10]} 32. Ke1 {[%emt 0:00:44]} Rd7 {[%emt 0:00:08]} 33. Qb2 {[%emt 0:00:15]} Rd3 {[%emt 0:00:19]} 34. Be2 {[%emt 0:00:10]} Rh3 {[%emt 0:00:13]} 35. e6 {[%emt 0:00:16]} Qxe6 {[%emt 0:00:06]} 36. Bxg7 {[%emt 0:00:06]} Rxh2 {[%emt 0:00:02]} 37. Qb8+ {[%emt 0:00:03]} Kxg7 {[%emt 0:00:04]} 38. Qxh2 {[%emt 0:00:03]} Qe3 {[%emt 0:00:05]} 39. Qg2+ {[%emt 0:00:03]} Kh7 {[%emt 0:00:07]} 40. Qb7 {[%emt 0:00:06]} Qg1+ {[%emt 0:00:05]} 41. Kd2 {[%emt 0:00:03]} Qg5+ {[%emt 0:00:07]} 42. Kd1 {[%emt 0:00:06]} Qg1+ {[%emt 0:00:08]} 43. Kc2 {[%emt 0:00:06]} Qg6+ {[%emt 0:00:03]} 44. Kd1 {[%emt 0:00:09]} Qg1+ {[%emt 0:00:04]} 45. Kc2 {[%emt 0:00:03]} Qg6+ {[%emt 0:00:02]} 46. Kc3 {[%emt 0:00:08]} Qf6+ {[%emt 0:00:02]} 47. Kc2 {[%emt 0:00:13]} Qg6+ {[%emt 0:00:02]} 1/2-1/2

[Event "European Online Club-ch-A 2021"]
[Site "Online"]
[Date "2021.03.27"]
[Round "1.12"]
[White "Emir, Doruk"]
[Black "Arkell, Keith C"]
[Result "1/2-1/2"]
[ECO "B17"]
[WhiteElo "1852"]
[BlackElo "2381"]
[Annotator "NA"]
[PlyCount "148"]
[EventDate "2021.03.27"]
[EventType "team-tourn"]
[EventCountry "NET"]
[SourceTitle "playchess.com"]
[Source "ChessBase"]
[SourceQuality "1"]
[TimeControl "900+5"]

1. e4 {[%emt 0:00:00]} c6 {[%emt 0:00:15]} 2. d4 {[%emt 0:00:04]} d5 {[%emt 0:00:04]} 3. Nd2 {[%emt 0:00:04]} dxe4 {[%emt 0:00:03]} 4. Nxe4 {[%emt 0:00:02]} Nd7 {[%emt 0:00:02]} 5. Nf3 {[%emt 0:00:10]} Ngf6 {[%emt 0:00:02]} 6. Nxf6+ {[%emt 0:00:07]} Nxf6 {[%emt 0:00:03]} 7. c3 {[%emt 0:00:08]} Bg4 {[%emt 0:00:08]} 8. h3 {[%emt 0:00:35]} Bxf3 {[%emt 0:00:05]} 9. Qxf3 {[%emt 0:00:18]} e6 {[%emt 0:00:00]} 10. Bd3 {[%emt 0:02:10]} Be7 {[%emt 0:00:05]} 11. O-O {[%emt 0:00:03]} O-O {[%emt 0:00:05]} 12. Bf4 {[%emt 0:00:40]} a6 {[%emt 0:00:12]} 13. Rfe1 {[%emt 0:00:23]} Rc8 {[%emt 0:00:07]} 14. Rad1 {[%emt 0:00:34]} Qd5 {[%emt 0:00:04]} 15. Qxd5 {[%emt 0:00:31]} Nxd5 {[%emt 0:00:07]} 16. Bg3 {[%emt 0:00:13]} Rfd8 {[%emt 0:00:06]} 17. Be4 {[%emt 0:00:12]} b5 {[%emt 0:00:21]} 18. Kf1 {[%emt 0:02:06]} h6 {[%emt 0:00:10]} 19. Rd3 {[%emt 0:00:58]} Bd6 {[%emt 0:00:11]} 20. Bxd6 {[%emt 0:00:31]} Rxd6 {[%emt 0:00:05]} 21. Red1 {[%emt 0:00:01]} g5 {[%emt 0:00:21]} 22. g3 {[%emt 0:00:45]} Kg7 {[%emt 0:00:05]} 23. Ke2 {[%emt 0:00:05]} Rd7 {[%emt 0:00:08]} 24. Bxd5 {[%emt 0:01:32]} cxd5 {[%emt 0:00:07]} 25. Kd2 {[%emt 0:00:06]} Rdc7 {[%emt 0:00:16]} 26. a3 {[%emt 0:01:04]} Kg6 {[%emt 0:00:06]} 27. Kc2 {[%emt 0:00:15]} a5 {[%emt 0:00:05]} 28. Kb3 {[%emt 0:00:04]} Rc4 {[%emt 0:00:06]} 29. Kc2 {[%emt 0:00:15]} b4 {[%emt 0:00:06]} 30. axb4 {[%emt 0:00:02]} axb4 {[%emt 0:00:02]} 31. Ra1 {[%emt 0:00:13]} bxc3 {[%emt 0:00:24]} 32. Rxc3 {[%emt 0:00:22]} Rxc3+ {[%emt 0:00:08]} 33. bxc3 {[%emt 0:00:03]} h5 {[%emt 0:00:07]} 34. Ra7 {[%emt 0:00:11]} g4 {[%emt 0:00:21]} 35. h4 {[%emt 0:00:29]} Rb8 {[%emt 0:00:26]} 36. Kc1 {[%emt 0:00:21]} Rh8 {[%emt 0:00:25]} 37. Kd2 {[%emt 0:00:07]} Kg7 {[%emt 0:00:03]} 38. Kd3 {[%emt 0:00:26]} Rb8 {[%emt 0:00:24]} 39. Kc2 {[%emt 0:00:01]} Kg6 {[%emt 0:00:02]} 40. Kc1 {[%emt 0:00:16]} f6 {[%emt 0:01:23]} 41. Ra6 {[%emt 0:00:32]} Kf5 {[%emt 0:00:04]} 42. Kc2 {[%emt 0:00:05]} Rb7 {[%emt 0:00:12]} 43. Kc1 {[%emt 0:00:23]} Re7 {[%emt 0:00:07]} 44. Kd2 {[%emt 0:00:12]} Rc7 {[%emt 0:00:19]} 45. Kc2 {[%emt 0:00:11]} e5 {[%emt 0:00:10]} 46. dxe5 {[%emt 0:00:14]} fxe5 {[%emt 0:00:10]} 47. Kd3 {[%emt 0:00:19]} e4+ {[%emt 0:03:08]} 48. Kd4 {[%emt 0:00:01]} Rc4+ {[%emt 0:00:02]} 49. Kxd5 {[%emt 0:00:02]} Rxc3 {[%emt 0:00:02]} 50. Rh6 {[%emt 0:00:10]} Rd3+ {[%emt 0:00:02]} 51. Kc4 {[%emt 0:00:07]} Rf3 {[%emt 0:00:51]} 52. Rxh5+ {[%emt 0:00:06]} Kf6 {[%emt 0:01:59]} 53. Kd4 {[%emt 0:00:13]} e3 {[%emt 0:00:36]} 54. fxe3 {[%emt 0:00:04]} Rxg3 {[%emt 0:00:04]} 55. Rg5 {[%emt 0:00:06]} Rg1 {[%emt 0:00:11]} 56. Ke4 {[%emt 0:00:04]} g3 {[%emt 0:00:08]} 57. Kf3 {[%emt 0:00:04]} Rh1 {[%emt 0:00:15]} 58. Kxg3 {[%emt 0:00:04]} Re1 {[%emt 0:00:40]} 59. Kf4 {[%emt 0:00:08]} Rh1 {[%emt 0:00:08]} 60. Rg4 {[%emt 0:00:06]} Rf1+ {[%emt 0:00:06]} 61. Ke4 {[%emt 0:00:02]} Rh1 {[%emt 0:00:06]} 62. Rf4+ {[%emt 0:00:03]} Ke6 {[%emt 0:00:11]} 63. Kf3 {[%emt 0:00:09]} Rh3+ {[%emt 0:00:05]} 64. Kg4 {[%emt 0:00:08]} Rxe3 {[%emt 0:00:03]} 65. Kg5 {[%emt 0:00:07]} Rg3+ {[%emt 0:00:10]} 66. Kh6 {[%emt 0:00:02]} Ke7 {[%emt 0:00:08]} 67. h5 {[%emt 0:00:05]} Rg2 {[%emt 0:00:03]} 68. Kh7 {[%emt 0:00:06]} Rg5 {[%emt 0:00:05]} 69. Kh6 {[%emt 0:00:04]} Rg1 {[%emt 0:00:02]} 70. Kh7 {[%emt 0:00:02]} Rg5 {[%emt 0:00:04]} 71. h6 {[%emt 0:00:01]} Rg2 {[%emt 0:00:03]} 72. Kh8 {[%emt 0:00:07]} Rg6 {[%emt 0:00:06]} 73. h7 {[%emt 0:00:10]} Rg2 {[%emt 0:00:03]} 74. Rf7+ {[%emt 0:00:03]} Kxf7 {[%emt 0:00:04]} 1/2-1/2

[Event "European Online Club-ch-A 2021"]
[Site "Online"]
[Date "2021.03.27"]
[Round "1.13"]
[White "Hera, Imre Jr."]
[Black "Valdes Escobar, Alvaro"]
[Result "1-0"]
[ECO "A24"]
[WhiteElo "2610"]
[BlackElo "2355"]
[Annotator "ChessBase"]
[PlyCount "67"]
[EventDate "2021.03.27"]
[EventType "team-tourn"]
[EventCountry "NET"]
[SourceTitle "playchess.com"]
[Source "ChessBase"]
[SourceQuality "1"]
[TimeControl "900+5"]

1. c4 {[%emt 0:00:00]} Nf6 {[%emt 0:00:12]} 2. Nc3 {[%emt 0:00:03]} c5 {[%emt 0:00:48]} 3. g3 {[%emt 0:00:03]} Nc6 {[%emt 0:00:40]} 4. Bg2 {[%emt 0:00:03]} g6 {[%emt 0:00:53]} 5. e3 {[%emt 0:00:10]} Bg7 {[%emt 0:00:10]} 6. Nge2 {[%emt 0:00:01]} O-O {[%emt 0:00:04]} 7. O-O {[%emt 0:00:03]} d6 {[%emt 0:00:56]} 8. d3 {[%emt 0:00:03]} e5 {[%emt 0:01:39]} 9. a3 {[%emt 0:00:17]} a5 {[%emt 0:00:11]} 10. Rb1 {[%emt 0:01:31]} Be6 {[%emt 0:00:07]} 11. Nd5 {[%emt 0:00:03]} Rb8 {[%emt 0:00:57]} 12. Nec3 {[%emt 0:00:05]} Bd7 {[%emt 0:02:42]} 13. Nb5 {[%emt 0:03:16]} Bc8 {[%emt 0:00:22]} 14. Bd2 {[%emt 0:00:42]} Nxd5 {[%emt 0:00:43]} 15. cxd5 {[%emt 0:00:02]} Ne7 {[%emt 0:00:02]} 16. b4 {[%emt 0:00:01]} axb4 {[%emt 0:00:25]} 17. axb4 {[%emt 0:00:01]} b6 {[%emt 0:00:54]} 18. Na7 {[%emt 0:00:11]} Bf5 {[%emt 0:01:00]} 19. Qb3 {[%emt 0:00:48]} Qc7 {[%emt 0:00:41]} 20. Nc6 {[%emt 0:00:09]} Nxc6 {[%emt 0:01:18]} 21. dxc6 {[%emt 0:00:02]} Be6 {[%emt 0:00:44]} 22. Bd5 {[%emt 0:00:04]} Bxd5 {[%emt 0:00:21]} 23. Qxd5 {[%emt 0:00:03]} Rbc8 {[%emt 0:00:01]} 24. b5 {[%emt 0:00:04]} Ra8 {[%emt 0:00:02]} 25. Ra1 {[%emt 0:00:13]} Kh8 {[%emt 0:00:11]} 26. Bc3 {[%emt 0:00:13]} f5 {[%emt 0:00:15]} 27. Rxa8 {[%emt 0:00:29]} Rxa8 {[%emt 0:00:02]} 28. Ra1 {[%emt 0:00:01]} Rxa1+ {[%emt 0:00:13]} 29. Bxa1 {[%emt 0:00:02]} Bf6 {[%emt 0:00:26]} 30. f4 {[%emt 0:00:28]} Kg7 {[%emt 0:00:10]} 31. fxe5 {[%emt 0:00:12]} dxe5 {[%emt 0:00:07]} 32. Bc3 {[%emt 0:00:45]} h5 {[%emt 0:00:11]} 33. Qa2 {[%emt 0:01:27]} Kh6 {[%emt 0:00:07]} 34. Qe6 {[%emt 0:00:14]} 1-0